Cogmind - Beta 13 @@@ ROGUE MODE // 2024.04.23 @ 16:29:55 Player: sick0r Result: Destroyed by H-55 Commando with Gauss Rifle Performance ------------- Evolutions (3) 1500 Regions Visited (9) 1800 Robots Destroyed (143) 715 Value Destroyed (4313) 4313 Prototype IDs (9) 180 Alien Tech Used (0) 0 Bonus (406) 406 TOTAL SCORE: 8914 Bonus ------- High Alert Combat Kills 106 Aligned with FarCom 300 Cogmind --------- Core Integrity 0/700 Matter 152/300 Energy 140/150 System Corruption 9% Temperature Cool (6) Movement Treading (240) Ox1 Location -7/Lower Caves Parts ------- > --- POWER (1) -------- Micro Nuclear Core > --- PROPULSION (4) --- Heavy Treads (fused) Heavy Treads > --- UTILITY (6) ------ Cargo Storage Unit Advanced Targeting Computer Improved Melee Analysis Suite Core Analyzer Hacking Suite > --- WEAPON (2) ------- Advanced Assault Cannon Ionic Axe > --- INVENTORY (30) --- Deuterium Engine Micro Nuclear Core Antimatter Reactor Heavy Treads Heavy Treads Coolant Injector High-capacity Matter Pod (200) Signal Interpreter Advanced Salvage Targeting Computer Improved Melee Analysis Suite Actuator Array Core Shielding Hardened Medium Armor Plating Hardened Medium Armor Plating Hardened Medium Armor Plating Improved Thermal Defense Suite Advanced System Shield System Restoration Module Recalibrator Improved Field Recycling Unit (0) Heavy Battle Rifle Advanced Assault Cannon Rocket Launcher Improved Grenade Launcher Smartbomb Launcher Improved Datajack Field Lobotomy Kit (5) Peak State ------------ > --- POWER ------------ Micro Nuclear Core > --- PROPULSION ------- Heavy Treads Heavy Treads > --- UTILITY ---------- Cargo Storage Unit Advanced Targeting Computer Improved Melee Analysis Suite Core Analyzer Hacking Suite > --- WEAPON ----------- Advanced Assault Cannon Ionic Axe > --- INVENTORY -------- Deuterium Engine Micro Nuclear Core Antimatter Reactor Heavy Treads Heavy Treads Coolant Injector High-capacity Matter Pod Signal Interpreter Advanced Salvage Targeting Computer Improved Melee Analysis Suite Actuator Array Core Shielding Hardened Medium Armor Plating Hardened Medium Armor Plating Hardened Medium Armor Plating Improved Thermal Defense Suite Advanced System Shield System Restoration Module Recalibrator Improved Field Recycling Unit Heavy Battle Rifle Advanced Assault Cannon Rocket Launcher Improved Grenade Launcher Smartbomb Launcher Improved Datajack Field Lobotomy Kit [Rating: 68] Favorites ----------- Power Ion Engine Engine Ion Engine Power Core Micro Nuclear Core Propulsion Wheel Treads Heavy Treads Leg Aluminum Leg Wheel Wheel Utility Cargo Storage Unit Device Actuator Array Storage Cargo Storage Unit Processor Improved Melee Analysis Suite Hackware Hacking Suite Protection Core Shielding Weapon Assault Rifle Energy Gun Precision Shock Rifle Energy Cannon Beam Cannon Ballistic Gun Assault Rifle Ballistic Cannon Gauss Cannon Launcher Rocket Launcher Special Weapon Field Lobotomy Kit Impact Weapon Impact Mace Slashing Weapon Greatsword Special Melee Weapon Datajack Build | -11 -10 -10 -10 -9 -8 -7 -7 -7 -7 ------- Run | Yrd Mat Min Exi Min Mat Fac Was Fac Low Slots Evolved 6 | . . . . . 4 2 . . . Power . | . . . . . . . . . . Propulsion 2 | . . . . . 1 1 . . . Utility 4 | . . . . . 3 1 . . . Weapon . | . . . . . . . . . . Parts Attached 187 | 7 20 5 5 9 51 71 7 12 . Power 21 | 1 3 1 . 1 8 5 1 1 . Engine 12 | 1 3 1 . 1 2 4 . . . Core 9 | . . . . . 6 1 1 1 . Reactor . | . . . . . . . . . . Propulsion 47 | 3 3 2 . 2 13 22 2 . . Treads 7 | 1 . . . 2 2 . 2 . . Leg 3 | 2 . . . . . 1 . . . Wheel 37 | . 3 2 . . 11 21 . . . Hover . | . . . . . . . . . . Flight . | . . . . . . . . . . Utility 42 | 1 3 . 2 1 12 21 1 1 . Device 12 | . . . 1 . 4 7 . . . Storage 5 | 1 2 . . 1 . . 1 . . Processor 8 | . . . . . 1 6 . 1 . Hackware 4 | . . . . . 1 3 . . . Protection 13 | . 1 . 1 . 6 5 . . . Artifact . | . . . . . . . . . . Weapon 77 | 2 11 2 3 5 18 23 3 10 . Energy Gun 3 | . . . . . 2 1 . . . Energy Cannon 7 | . 2 . . 1 3 . . 1 . Ballistic Gun 23 | 2 5 2 1 1 6 4 2 . . Ballistic Cannon 13 | . . . . 1 2 5 . 5 . Launcher 7 | . . . . 2 . 2 . 3 . Special Weapon 3 | . . . 1 . . 2 . . . Impact Weapon 5 | . . . . . 1 4 . . . Slashing Weapon 9 | . . . . . 3 4 1 1 . Piercing Weapon . | . . . . . . . . . . Special Melee Weapon 7 | . 4 . 1 . 1 1 . . . Unidentified Prototypes 9 | . . . 2 . 2 3 1 1 . Parts Lost 57 | . 2 3 . 7 16 28 . 1 . Power 8 | . 1 1 . 1 3 2 . . . Propulsion 21 | . . 2 . 2 5 12 . . . Utility 12 | . . . . . 3 9 . . . Weapon 16 | . 1 . . 4 5 5 . 1 . Highest Loss Streak 9 | . 1 3 . 6 4 9 . 1 . To Critical Strikes . | . . . . . . . . . . Average Slot Usage (%) 85 | . 94 95 100 83 85 80 80 76 76 Engine 6 | . 14 13 14 11 2 5 . . . Core 2 | . . . . . 6 . 7 7 7 Treads 4 | . . . . 6 6 . 10 15 15 Wheel 18 | . 22 24 28 21 17 22 8 . . Device 1 | . . . . . 2 6 . . . Storage 10 | . 14 14 14 14 9 7 7 7 7 Processor 7 | . . . . . 5 9 23 23 23 Hackware 4 | . . . . . 8 8 7 7 7 Protection 6 | . 9 14 14 . 10 4 . . . Energy Cannon 1 | . 6 6 . 3 3 . . . . Ballistic Gun 8 | . 19 21 14 10 8 2 7 3 . Ballistic Cannon 2 | . . . . . . 2 7 7 7 Special Melee Weapon 2 | . 1 . 13 7 . . . . . Naked Turns . | . . . . . . . . . . Heaviest Build 169 | 12 31 31 30 154 168 169 157 157 156 Greatest Support 140 | 20 32 32 20 43 63 48 140 140 140 Greatest Overweight (x) 16 | 2 1 2 1 7 9 16 3 1 1 Average Overweight (x) 2 | . . . 1 5 3 4 1 1 1 Largest Inventory Capacity 30 | 8 15 15 15 30 30 30 30 30 30 Average Capacity 25 | 7 14 15 15 29 30 30 29 30 30 Most Carried 30 | 8 15 15 15 22 30 30 30 30 30 Average Carried 22 | 5 11 14 14 19 27 26 28 29 30 Final Capacity 30 | 8 15 15 15 30 30 30 30 30 30 Final Carried 30 | 6 15 15 15 20 30 28 30 30 30 Class Distribution -------------------- 60% | Hauler-Mutant 28% | Mutant 10% | Hauler-Gladiator Dominant Class ---------------- Mutant | -10/Materials Mutant | -10/Mines Mutant | -10/Exiles Hauler-Mutant | -9/Mines Hauler-Mutant | -8/Materials Hauler-Mutant | -7/Factory Hauler-Mutant | -7/Waste Hauler-Mutant | -7/Factory Hauler-Mutant | -7/Lower Caves Resources | -11 -10 -10 -10 -9 -8 -7 -7 -7 -7 ----------- Run | Yrd Mat Min Exi Min Mat Fac Was Fac Low Matter Collected 4080 | 233 593 392 . 269 949 1173 145 326 . Remotely . | . . . . . . . . . . Salvage Created 5178 | . 446 357 . 90 1577 2256 . 452 . Parts 259 | . 35 18 . 5 82 97 . 22 . Haulers Intercepted 1 | . . . . . 1 . . . . Recyclers Shooed 4 | . . . . . 3 1 . . . Parts Field Recycled . | . . . . . . . . . . Retrieved Matter . | . . . . . . . . . . Parts Self-Destructed . | . . . . . . . . . . Prevented . | . . . . . . . . . . Kills | -11 -10 -10 -10 -9 -8 -7 -7 -7 -7 ------- Run | Yrd Mat Min Exi Min Mat Fac Was Fac Low Combat Hostiles Destroyed 101 | . 12 7 . 1 26 43 . 12 . Melee 26 | . . . . . 4 21 . 1 . Guns 42 | . 11 5 . . 17 7 . 2 . Cannons 21 | . 1 2 . . 5 8 . 5 . AOE 8 | . . . . 1 . 3 . 4 . Classes Destroyed 14 | . 5 1 . 2 3 3 . . . Worker 10 | . 1 1 . . 1 6 . 1 . Builder 4 | . . . . . 1 3 . . . Tunneler 4 | . . . . 1 . 3 . . . Hauler 1 | . . . . . 1 . . . . Recycler 14 | . . 1 . 1 4 7 . 1 . Mechanic 1 | . . . . . . 1 . . . Operator 3 | . 1 . . . 2 . . . . Watcher 6 | . 3 . . . 2 1 . . . Swarmer 30 | . 6 3 . . 7 10 . 4 . Grunt 49 | . 6 4 . . 14 21 . 4 . Duelist 1 | . . . . . . 1 . . . Sentry 8 | . . . . 1 3 3 . 1 . Hunter 3 | . . . . . 2 1 . . . Programmer 10 | . . . . . . 7 . 3 . Best Kill Streak 8 | . 3 4 . 2 8 7 . 5 . Combat Bots Only 8 | . 3 4 . 1 8 4 . 4 . Max Kills in Single Turn 4 | . 1 1 . 2 1 3 . 4 . Gunslinging . | . . . . . . . . . . Exploded 4 | . . . . 1 . 3 . 4 . Melee 1 | . . . . . 1 1 . 1 . Uniques/NPCs Destroyed . | . . . . . . . . . . Combat | -11 -10 -10 -10 -9 -8 -7 -7 -7 -7 -------- Run | Yrd Mat Min Exi Min Mat Fac Was Fac Low Hostile Shots Fired 889 | . 57 38 . 48 234 433 . 76 3 Missed 233 | . 15 6 . 7 58 130 . 17 . Damage Taken 8722 | . 423 422 . 677 2412 3950 . 788 50 Core 1231 | . 71 73 . 84 297 632 . 56 18 Absorbed by Shields 208 | . . . . . 196 12 . . . Reduced by Siege Mode 92 | . . . . . . . . 92 . Redirected to Shielding 51 | . . 15 . . 21 15 . . . Regen/Repaired (Parts) 142 | . 55 . . . . 87 . . . Core Remaining (%) 51 | 100 . . . 8 46 . . . . Volleys Fired 304 | . 49 47 . 14 91 80 . 23 . Largest 2 | . 2 2 . 2 2 2 . 2 . Hottest 128 | . 80 80 . 108 128 73 . 92 . Shots Fired 551 | . 97 71 . 23 176 135 . 49 . Gun 397 | . 92 61 . 4 152 70 . 18 . Cannon 135 | . 5 10 . 14 24 57 . 25 . Launcher 17 | . . . . 5 . 6 . 6 . Special 2 | . . . . . . 2 . . . Kinetic 462 | . 92 61 . 13 143 110 . 43 . Thermal 53 | . 5 10 . 5 33 . . . . Explosive 17 | . . . . 5 . 6 . 6 . Electromagnetic 17 | . . . . . . 17 . . . Robot Hit Streak 24 | . 8 12 . 4 24 10 . 14 . Robot Miss Streak 4 | . 3 4 . 2 2 4 . 2 . Penetration Max 1 | . . . . . . 1 . 1 . Secondary Targets 4 | . . . . . 4 . . . . Max Gunslinging Chain 1 | . . . . . 1 . . . . Shots Hit Robots 455 | . 58 50 . 16 150 145 . 36 . Core Hits 201 | . 24 16 . 6 65 68 . 22 . Critical Kills 1 | . . . . . . 1 . . . Critical Parts Destroyed 11 | . . . . . . 11 . . . Critical Strikes 21 | . . . . . . 19 . 2 . Destroy 1 | . . . . . . 1 . . . Blast 5 | . . . . . . 3 . 2 . Smash 11 | . . . . . . 11 . . . Sever 4 | . . . . . . 4 . . . Melee Attacks 165 | . . . . 1 43 116 . 5 . Impact 78 | . . . . . 5 73 . . . Slashing 86 | . . . . . 38 43 . 5 . Piercing . | . . . . . . . . . . Sneak Attacks 10 | . . . . 1 4 5 . . . Combat Hostiles . | . . . . . . . . . . Follow-up Attacks 4 | . . . . . . 4 . . . Damage Inflicted 11920 | . 770 666 . 406 2580 6241 . 1257 . Guns 3893 | . 735 542 . 50 1450 867 . 249 . Cannons 2351 | . 35 124 . 222 348 1054 . 568 . Explosions 1102 | . . . . 134 . 609 . 359 . Melee 4574 | . . . . . 782 3711 . 81 . Ramming . | . . . . . . . . . . Kinetic 5305 | . 735 542 . 236 1370 1605 . 817 . Thermal 698 | . 35 124 . 36 428 75 . . . Explosive 1027 | . . . . 134 . 534 . 359 . Electromagnetic 316 | . . . . . . 316 . . . Impact 2662 | . . . . . . 2662 . . . Slashing 1912 | . . . . . 782 1049 . 81 . Piercing . | . . . . . . . . . . Highest Corruption 9 | . . . . . 3 3 . 9 9 Average Corruption 4 | . . . . . 3 2 . 5 9 Corruption Purged 4 | . . . . . . 4 . . . Corruption Blocked . | . . . . . . . . . . Effects 63 | . . . . . 4 9 . 50 . Message Errors 17 | . . . . . . 2 . 15 . Matter Fused 15 | . . . . . . 3 . 12 . Heat Flow Errors 9 | . . . . . 2 1 . 6 . Energy Discharges 6 | . . . . . . 1 . 5 . Parts Fused 1 | . . . . . . . . 1 . Data Loss (minor) 6 | . . . . . 1 2 . 3 . Data Loss (major) 3 | . . . . . 1 . . 2 . Misfires 4 | . . . . . . . . 4 . Alerts 2 | . . . . . . . . 2 . Overload Shots . | . . . . . . . . . . Overflow Damage 1426 | . . . . 6 199 1193 . 28 . Projectiles 65 | . . . . . . 41 . 24 . Explosions 21 | . . . . 6 . 11 . 4 . Melee 1340 | . . . . . 199 1141 . . . Knockbacks 27 | . . . . . . 26 . 1 . Impact 17 | . . . . . . 17 . . . Kinetic 7 | . . . . . . 6 . 1 . Secondary 3 | . . . . . . 3 . . . Self-Inflicted Damage 161 | . . . . 73 . . . 88 . Shots 6 | . . . . 4 . . . 2 . Rammed . | . . . . . . . . . . Targets Rammed . | . . . . . . . . . . Kicked . | . . . . . . . . . . Crushed . | . . . . . . . . . . Highest Temperature 376 | . 36 234 . 366 376 193 . 219 . Average Temperature 79 | . 16 107 . 193 86 34 . 66 . Received Heat Transfer 2383 | . 138 219 . 225 784 843 . 174 . Effects 5 | . . 2 . 2 1 . . . . Energy Bleed 2 | . . . . 1 1 . . . . Interference 2 | . . 2 . . . . . . . Damage (minor) 1 | . . . . 1 . . . . . Siege Activations 6 | . . . . . . . . 6 . Total Turns 146 | . . . . . . . . 146 . Longest Duration 50 | . . . . . . . . 50 . Robots Corrupted 1 | . . . . . . 1 . . . Combat Hostiles 1 | . . . . . . 1 . . . Parts Fried 12 | . . . . . . 12 . . . Impact Corruptions 30 | . . . . . . 30 . . . Robots Melted . | . . . . . . . . . . Combat Hostiles . | . . . . . . . . . . Parts Melted 1 | . . . . . 1 . . . . Heat Transferred 1395 | . 74 259 . 74 888 100 . . . Parts Sabotaged . | . . . . . . . . . . Parts Stolen . | . . . . . . . . . . Parts Stripped . | . . . . . . . . . . Power Chain Reactions 1 | . . . . . . 1 . . . Alert | -11 -10 -10 -10 -9 -8 -7 -7 -7 -7 ------- Run | Yrd Mat Min Exi Min Mat Fac Was Fac Low Peak Influence 619 | . 338 140 . 39 160 619 210 213 . Initial 210 | . . . . . . 68 210 . . Average 103 | . 124 31 . 1 62 215 69 75 . Maximum Alert Level 2 | . 1 . . . . 2 1 1 . Low Security (%) 81 | 100 74 100 . 100 100 55 68 95 . Level 1 16 | . 25 . . . . 36 31 4 . Level 2 2 | . . . . . . 8 . . . Level 3 . | . . . . . . . . . . Level 4 . | . . . . . . . . . . Level 5 . | . . . . . . . . . . High Security . | . . . . . . . . . . Max Security . | . . . . . . . . . . Squads Dispatched 31 | . 1 . . . 7 18 . 5 . Investigation 14 | . 1 . . . 4 7 . 2 . Extermination 10 | . . . . . . 7 . 3 . Reinforcement 5 | . . . . . 3 2 . . . Assault 2 | . . . . . . 2 . . . Garrison . | . . . . . . . . . . Intercept . | . . . . . . . . . . Searches Triggered . | . . . . . . . . . . Construction Impeded 1 | . . . . . . 1 . . . Haulers Reinforced . | . . . . . . . . . . Active Scanning Responses . | . . . . . . . . . . Cargo Convoy Interrupts . | . . . . . . . . . . Stealth | -11 -10 -10 -10 -9 -8 -7 -7 -7 -7 --------- Run | Yrd Mat Min Exi Min Mat Fac Was Fac Low Distress Signals 5 | . 1 . . . 3 1 . . . Communications Jammed . | . . . . . . . . . . Distress Signals . | . . . . . . . . . . Times Spotted 148 | . 21 7 . 2 38 68 . 11 1 Peak Tracking Total 9 | . 8 5 . 2 9 5 . 4 1 Tactical Retreats 4 | . 2 . . . . 2 . . . Traps | -11 -10 -10 -10 -9 -8 -7 -7 -7 -7 ------- Run | Yrd Mat Min Exi Min Mat Fac Was Fac Low Traps Triggered 7 | . . . . . 1 4 . 2 . Indirectly . | . . . . . . . . . . Trap Hack Attempts 80 | . 74 . . . 6 . . . . Triggered . | . . . . . . . . . . Disarmed 2 | . 1 . . . 1 . . . . Reprogrammed 5 | . 5 . . . . . . . . Reused . | . . . . . . . . . . Traps Extracted . | . . . . . . . . . . Installed . | . . . . . . . . . . Triggered 1 | . . . . . . 1 . . . Machines | -11 -10 -10 -10 -9 -8 -7 -7 -7 -7 ---------- Run | Yrd Mat Min Exi Min Mat Fac Was Fac Low Machines Disabled 7 | . 1 . . 2 . 2 . 2 . Max in Single Turn 2 | . 1 . . 2 . 1 . 1 . Garrison Access 2 | . . . . . 1 1 . . . Machines Repaired . | . . . . . . . . . . Machines Dismantled . | . . . . . . . . . . Machines Sabotaged . | . . . . . . . . . . Overloaded Fab Kills . | . . . . . . . . . . Hacking | -11 -10 -10 -10 -9 -8 -7 -7 -7 -7 --------- Run | Yrd Mat Min Exi Min Mat Fac Was Fac Low Machines Accessed 35 | . 11 . . . 7 12 . 5 . Terminals 19 | . 8 . . . 3 5 . 3 . Fabricators 3 | . . . . . . 1 . 2 . Repair Stations 3 | . 1 . . . . 2 . . . Recycling Units 4 | . 2 . . . 1 1 . . . Scanalyzers 3 | . . . . . 2 1 . . . Garrison Access 3 | . . . . . 1 2 . . . Total Hacks 80 | . 27 . . . 15 29 . 9 . Successful 36 | . 10 . . . 8 12 . 6 . Failed 44 | . 17 . . . 7 17 . 3 . Catastrophic 13 | . 5 . . . 1 6 . 1 . Database Lockouts . | . . . . . . . . . . Manual 20 | . 11 . 1 . 5 2 . 1 . Terminals 40 | . 20 . . . 6 9 . 5 . Fabricators 6 | . . . . . . 2 . 4 . Repair Stations 9 | . 4 . . . . 5 . . . Recycling Units 8 | . 3 . . . 2 3 . . . Scanalyzers 11 | . . . . . 6 5 . . . Garrison Access 6 | . . . . . 1 5 . . . Terminal Hacks 9 | . 3 . . . 1 2 . 3 . Record 1 | . . . . . . 1 . . . Part Schematic 1 | . . . . . . 1 . . . Emergency Access Points 1 | . . . . . . . . 1 . Unreport Threat 1 | . 1 . . . . . . . . Locate Traps 2 | . 1 . . . . . . 1 . Recall Investigation 1 | . . . . . 1 . . . . Zone Layout 2 | . 1 . . . . . . 1 . Fabricator Hacks 5 | . . . . . . 2 . 3 . Load Schematic 3 | . . . . . . 1 . 2 . Build 2 | . . . . . . 1 . 1 . Repair Station Hacks 7 | . 4 . . . . 3 . . . Scan Component 4 | . 2 . . . . 2 . . . Repair 3 | . 2 . . . . 1 . . . Recycling Unit Hacks 4 | . 2 . . . 1 1 . . . Report Inventory 4 | . 2 . . . 1 1 . . . Scanalyzer 7 | . . . . . 4 3 . . . Insert Component 4 | . . . . . 2 2 . . . Analyze 3 | . . . . . 2 1 . . . Garrison Access Hacks 2 | . . . . . 1 1 . . . Seal Access 2 | . . . . . 1 1 . . . Unauthorized Hacks 2 | . 1 . . . 1 . . . . Terminals . | . . . . . . . . . . Fabricators . | . . . . . . . . . . Repair Stations . | . . . . . . . . . . Recycling Units 2 | . 1 . . . 1 . . . . Tunnel 2 | . 1 . . . 1 . . . . Scanalyzers . | . . . . . . . . . . Garrison Access . | . . . . . . . . . . Data Cores Recovered 1 | . 1 . . . . . . . . Used . | . . . . . . . . . . Hacking Detections 26 | . 7 . . . 5 11 . 3 . Full Trace Events 11 | . . . . . 2 7 . 2 . Feedback Events . | . . . . . . . . . . Feedback Blocked . | . . . . . . . . . . Robot Schematics Acquired . | . . . . . . . . . . Robots Built . | . . . . . . . . . . Authchips . | . . . . . . . . . . Time . | . . . . . . . . . . Total Robot Build Rating . | . . . . . . . . . . Part Schematics Acquired 3 | . . . . . 1 2 . . . Parts Built 3 | . . . . . . 2 . 1 . Authchips . | . . . . . . . . . . Time 146 | . . . . . . 62 . 84 . Total Part Build Rating 8 | . . . . . . 4 . 4 . Parts Repaired 3 | . 2 . . . . 1 . . . Time 80 | . 64 . . . . 16 . . . Parts Recycled . | . . . . . . . . . . Recycled Matter . | . . . . . . . . . . Retrieved Matter . | . . . . . . . . . . Retrieved Components . | . . . . . . . . . . Parts Scanalyzed 3 | . . . . . 1 2 . . . Part Schematics Acquired 2 | . . . . . 1 1 . . . Parts Damaged 1 | . . . . . . 1 . . . Bothacking | -11 -10 -10 -10 -9 -8 -7 -7 -7 -7 ------------ Run | Yrd Mat Min Exi Min Mat Fac Was Fac Low Used RIF Installer . | . . . . . . . . . . Robots Hacked 1 | . . . . 1 . . . . . Non-combat 1 | . . . . 1 . . . . . Combat . | . . . . . . . . . . Robot Hacks Applied 1 | . . . . 1 . . . . . no_distress 1 | . . . . 1 . . . . . Relay Couplers Released . | . . . . . . . . . . Fabnet Peak Effective % . | . . . . . . . . . . Robots Rewired . | . . . . . . . . . . Allies Hacked . | . . . . . . . . . . Hacks Repelled . | . . . . . . . . . . Allies | -11 -10 -10 -10 -9 -8 -7 -7 -7 -7 -------- Run | Yrd Mat Min Exi Min Mat Fac Was Fac Low Total Allies 1 | . . 1 . . . . . . . Largest Group 1 | . . 1 1 . . . . . . Highest-Rated Group 31 | . . 31 31 . . . . . . Highest-Rated Ally 31 | . . 31 31 . . . . . . Total Orders . | . . . . . . . . . . Ally Attacks . | . . . . . . . . . . Total Damage . | . . . . . . . . . . Kills . | . . . . . . . . . . Allies Corrupted . | . . . . . . . . . . Allies Melted . | . . . . . . . . . . Intel | -11 -10 -10 -10 -9 -8 -7 -7 -7 -7 ------- Run | Yrd Mat Min Exi Min Mat Fac Was Fac Low Robot Analysis Total . | . . . . . . . . . . Derelict Logs Recovered 3 | . . 2 . 1 . . . . . Drone Launches . | . . . . . . . . . . Drone Recoveries . | . . . . . . . . . . Exploration | -11 -10 -10 -10 -9 -8 -7 -7 -7 -7 ------------- Run | Yrd Mat Min Exi Min Mat Fac Was Fac Low Turns Passed 16100 | 62 1399 600 2480 1525 3120 3645 1260 2006 3 Spaces Moved 6783 | 43 885 431 542 633 1199 1730 616 702 2 Core 19 | 19 . . . . . . . . . Treads 1310 | 2 . . . 85 157 . 362 702 2 Legs 155 | 22 121 . . . . 12 . . . Wheels 5299 | . 764 431 542 548 1042 1718 254 . . Hover . | . . . . . . . . . . Flight . | . . . . . . . . . . Fastest Speed 50 | 50 100 95 95 95 138 125 80 240 240 Average Speed 161 | 104 110 100 95 203 175 154 192 240 240 Slowest Speed 690 | 160 190 110 95 400 400 690 240 240 240 Overloaded Moves . | . . . . . . . . . . Propulsion Burnouts . | . . . . . . . . . . Robots Hopped . | . . . . . . . . . . Cave-ins Triggered 1 | . . . . . 1 . . . . Exploration Rate (%) 55 | 4 96 66 79 92 68 31 97 20 2 Regions Visited 9 Branch Regions 4 Pre-discovered Areas 3 | . 1 1 . . 1 . . . . Known Exits Taken . | . . . . . . . . . . Unknown Exits Taken 7 | 1 1 1 1 1 1 . . 1 . Scrap Searched 3 | . . 1 . 2 . . . . . Spaces Dug 53 | . . . . . 26 25 . 2 . Terrain Destroyed 169 | . . . . 25 26 66 . 52 . Melee 53 | . . . . . 26 25 . 2 . Projectile 9 | . . . . 3 . 3 . 3 . AOE 107 | . . . . 22 . 38 . 47 . Terrain Rammed . | . . . . . . . . . . Walls Destroyed . | . . . . . . . . . . Machines Disabled . | . . . . . . . . . . Actions | -11 -10 -10 -10 -9 -8 -7 -7 -7 -7 --------- Run | Yrd Mat Min Exi Min Mat Fac Was Fac Low Total 11203 | 57 1202 524 2506 856 1992 2386 708 970 2 Wait 3351 | . 150 40 1952 166 504 316 5 218 . Move 6775 | 42 884 430 541 632 1198 1730 615 701 2 Hop . | . . . . . . . . . . Pick Up 196 | 8 17 2 2 23 58 48 36 2 . Fast Attach 17 | 4 1 1 . . 5 3 1 2 . Attach 87 | 2 3 2 1 8 24 43 3 1 . Detach 7 | . . . . . . 7 . . . Swap 83 | 1 16 2 4 1 22 25 3 9 . Drop 121 | . 8 . 2 11 41 16 38 5 . Fire 304 | . 49 47 . 14 91 80 . 23 . Melee 159 | . . . . 1 43 110 . 5 . Ram . | . . . . . . . . . . Kick . | . . . . . . . . . . Crush . | . . . . . . . . . . Escape Stasis 12 | . . . . . . 8 . 4 . Rewire 11 | . . . 4 . . . 7 . . Trap 80 | . 74 . . . 6 . . . . Miscellaneous . | . . . . . . . . . . Route ------- -11/Scrapyard -10/Materials (discovered 4 exits: [*Mat x3] / [*Min]) -10/Mines (discovered 3 exits: [*Mat x2] / *Exi) -10/Exiles (discovered 2 exits: [*Min x2]) -9/Mines (discovered 2 exits: *Mat x2) -8/Materials (discovered 2 exits: *Fac x2) -7/Factory -7/Waste -7/Factory -7/Lower Caves History --------- Turn | Location | Event 10 | -11/Scrapyard | Discovered new exit (range 15) 63 | -11/Scrapyard | Entered Materials 318 | -10/Materials | Build established: Mutant 443 | -10/Materials | Discovered new exit (range 13) 558 | -10/Materials | Discovered new exit (range 3) 706 | -10/Materials | Discovered new exit (range 12) 847 | -10/Materials | Discovered new exit (range 15) 1123 | -10/Materials | Repaired Assault Rifle 1162 | -10/Materials | Repaired Hacking Suite 1462 | -10/Materials | Entered Mines 1466 | -10/Mines | Learned Materials terminal intel 1519 | -10/Mines | Discovered new exit (range 5) 1626 | -10/Mines | Deemed a non-threat by the Exiles lab entrance 1626 | -10/Mines | Discovered new exit (range 5) 1680 | -10/Mines | Discovered new exit (range 6) 1702 | -10/Mines | Learned location of Zion (-6) 1780 | -10/Mines | Core integrity fell below 50% 1808 | -10/Mines | Lost 3 parts (1p2n) 1821 | -10/Mines | Received a Mining Laser from a helpful Derelict 1985 | -10/Mines | Assembled infested the area 2062 | -10/Mines | Entered Exiles 2062 | -10/Exiles | Accompanied by 1 ally 2078 | -10/Exiles | Discovered new exit (range 14) 2096 | -10/Exiles | Met 8R-AWN 2110 | -10/Exiles | Met EX-HEX 2179 | -10/Exiles | Met EX-DEC 2201 | -10/Exiles | Visited The Gauntlet 2266 | -10/Exiles | Met EX-BIN 2279 | -10/Exiles | Aligned with FarCom system 2280 | -10/Exiles | Given EX-Vault access code 2302 | -10/Exiles | Opened EX-Vault 2311 | -10/Exiles | Found Prototype Device 2312 | -10/Exiles | Identified Trap Reconfigurator 2316 | -10/Exiles | Found Prototype Special Weapon 2317 | -10/Exiles | Identified Field Lobotomy Kit 2340 | -10/Exiles | Warned to stay clear of 0b10 Research branches 2423 | -10/Exiles | Discovered new exit (range 14) 4542 | -10/Exiles | Left Exiles lab with Field Lobotomy Kit 4542 | -10/Exiles | Entered Mines 4542 | -9/Mines | Discovered new exit (range 13) 4579 | -9/Mines | Found a hidden stash of uninstalled traps 4612 | -9/Mines | Found a damaged Exp. Sensor Array with a note attached 4620 | -9/Mines | Found Prototype Device 4791 | -9/Mines | Discovered new exit (range 12) 4826 | -9/Mines | Received a Rocket Launcher from a helpful Derelict 4906 | -9/Mines | Build established: Hauler-Mutant 5180 | -9/Mines | Learned Materials machine intel 5218 | -9/Mines | A weapon hastily lodged in a ceiling crevice suddenly fell to the ground 5707 | -9/Mines | Core integrity fell below 20% 5739 | -9/Mines | Lost 6 parts (2n4w) 6067 | -9/Mines | Entered Materials 6067 | -8/Materials | Evolved 4 slots: Propulsion x1, Utility x3 6068 | -8/Materials | Loaded intel: 64 machine locations 6069 | -8/Materials | Loaded intel: 12 terminal locations 6422 | -8/Materials | Lost 4 parts (1p1n2u) 6432 | -8/Materials | Destroyed 8 combat bots 7128 | -8/Materials | Lost 3 parts (1p1n1w) 7158 | -8/Materials | Identified Exp. Sensor Array 7868 | -8/Materials | Discovered new exit (range 8) 8277 | -8/Materials | Discovered new exit (range 15) 9030 | -8/Materials | Crushed by falling debris 9030 | -8/Materials | Core integrity fell below 50% 9187 | -8/Materials | Entered Factory 9187 | -7/Factory | Evolved 2 slots: Propulsion x1, Utility x1 9638 | -7/Factory | Build established: Hauler-Gladiator 9960 | -7/Factory | Lost 9 parts (1p4n3u1w) 10208 | -7/Factory | Build established: Hauler-Mutant 10266 | -7/Factory | Fabricated Arm. Wheel? 10752 | -7/Factory | Repaired Arm. Wheel 11199 | -7/Factory | Build established: Hauler-Gladiator 11253 | -7/Factory | Core integrity fell below 50% 11857 | -7/Factory | Lost 5 parts (3n1u1w) 12117 | -7/Factory | Build established: Hauler-Mutant 12609 | -7/Factory | Core integrity fell below 20% 12781 | -7/Factory | Lost 4 parts (1p3n) 12787 | -7/Factory | First assault squad dispatched 12832 | -7/Factory | Sucked down chute 12832 | -7/Factory | Entered Waste 12832 | -7/Waste | The area was eerily silent 13001 | -7/Waste | Discovered new exit (range 13) 14010 | -7/Waste | A Compactor rumbled back to life 14010 | -7/Waste | Spotted C-40 Crusher 14092 | -7/Waste | Entered Factory 15346 | -7/Factory | Fabricated Kinecellerator? 16010 | -7/Factory | Discovered new exit (range 16) 16098 | -7/Factory | Entered Lower Caves 16101 | -7/Lower Caves | Destroyed by H-55 Commando with Gauss Rifle Last Messages --------------- 15953_ P-60 Hacker destroyed. 15958_ Acquired 44 matter. 15967_ R-06 Scavenger collects Target Analyzer. 15967_ R-06 Scavenger collects Shock Rifle. 15969_ System corrupted: Energy discharge (-48). 15970_ R-06 Scavenger collects Shock Rifle. 15979_ Acquired 4 matter. 15982_ Acquired 11 matter. 15986_ Acquired 46 matter. 15998_ Acquired 16 matter. 16010_ EXIT=FOUND 16032_ System corrupted: Matter fused (-6). 16063_ Dropped Assault Cannon. 16080_ 4BPTTDDDLF U8/H=E6| F4N, Map ----- +----------------------------------------------------+ | ?????????????????????????????????????????????????? | | ?????????????????????????????????????????????????? | | ?????????????????????????????????????????????????? | | ?????????????????????????????????????????????????? | | ?????????????????????????????????????????????????? | | ?????????????????????????????????????????????????? | | ?????????????????????????????????????????????????? | | ?????????????????????????????????????????????????? | | ?????????????????????????????????????????????????? | | ?????????????????????????????????????????????????? | | ?????????????????????????????????????????????????? | | ?????????????????????????????????????????????????? | | ?????????????????????????????????????????????????? | | ?????????????????????????????????????????????????? | | ?????????????????????????????????????????????????? | | ?????????????????????????????????????????????????? | | ?????????????????????????????????????????????????? | | ?????????????????????????????????????????????????? | | ?????????????????????????????????????????????????? | | ??????????????????????????????????????#??????????? | | ?????????????????????????#####?????? #??????????? | | ????????????????????????## ##### ## ????????? | | ????????????????????????# #??????? | | ???????????????????????## #???????? | | ???????????# ### #####?????????????? | | ???????????# h@ #????????????????? | | ???????????????# ### ### #????????????????? | | ????????????????????## #?? #????????????????? | | ?????????????????????# #####??? #???????????????? | | ?????????????????????##????????? #???????????????? | | ?????????????????????????????????#???????????????? | | ?????????????????????????????????????????????????? | | ?????????????????????????????????????????????????? | | ?????????????????????????????????????????????????? | | ?????????????????????????????????????????????????? | | ?????????????????????????????????????????????????? | | ?????????????????????????????????????????????????? | | ?????????????????????????????????????????????????? | | ?????????????????????????????????????????????????? | | ?????????????????????????????????????????????????? | | ?????????????????????????????????????????????????? | | ?????????????????????????????????????????????????? | | ?????????????????????????????????????????????????? | | ?????????????????????????????????????????????????? | | ?????????????????????????????????????????????????? | | ?????????????????????????????????????????????????? | | ?????????????????????????????????????????????????? | | ?????????????????????????????????????????????????? | | ?????????????????????????????????????????????????? | | ?????????????????????????????????????????????????? | +----------------------------------------------------+ Best States ------------- Heat Dissipation 34 Energy Generation 15 Energy Capacity 280 Matter Stores 300 Matter Capacity 300 Sight Range 16 Robot Scan Range 20 Terrain Scan Density 10 Armor Coverage 450 Core Shielding 20 Melee Speed Boost 20 Evasion (%) 55 Targeting Accuracy 8 Melee Accuracy 6 Core Analysis 6 Recoil Reduction 4 Offensive Hacking 10 Defensive Hacking 10 Item Schematics ----------------- Exp. Sensor Array | -8/Materials | Scanalyzed Arm. Wheel | -7/Factory | Scanalyzed Kinecellerator | -7/Factory | Hacked Robot Schematics ------------------ None Fabricated ------------ Arm. Wheel | x2 | -7/Factory Kinecellerator | x1 | -7/Factory Alien Tech Used ----------------- None Achievements -------------- None Challenges ------------ None Game ------ Seed AlertSpikedFragment Manual? 0 Play Time 02:24:05 Cumulative 37.9 hours Start 2024.04.23 @ 11:52:04 End 2024.04.23 @ 16:29:55 Sessions 3 Manual Loads 0 Difficulty Rogue Special Mode None Game No. 39 Rogue 39 Adventurer 0 Explorer 0 Win Type - Total 0 Types 0/0/0/0/0/0/0/0/0 Lore% 17 Gallery% 26 Achievement% 100 Wizard Run 0 Options --------- Layout 1 ASCII 0 Keyboard 0 Movement Mouse Keybinds 0 Fullscreen 1 Font 24/Smallcaps Map View 50x35 Zoom Use 0% Tactical HUD 1 Map Filters NONE Filters NONE Steam 1 RUN: 5799d792-9693-4f94-a0b7-088edcae79e7